bitfinex/quotes_SOLUSD_20241123
["timestamp","ask_amount","ask_price","bid_price","bid_amount"]
[1732392204248,10.0,254.24,254.23,12.04152658]
[1732392206352,10.0,254.16,254.09,20.0]
[1732392206527,10.0,254.18,254.09,20.0]
[1732392207053,10.0,254.16,254.07,10.0]
[1732392207350,10.0,254.18,254.08,20.0]
[1732392207753,10.0,254.2,254.17,12.04152658]
[1732392207942,10.0,254.22,254.19,12.04152658]
[1732392208267,10.0,254.24,254.21,12.04152658]
[1732392208554,10.0,254.24,254.15,12.04152658]
[1732392208555,10.0,254.24,254.23,12.04152658]
[1732392208753,10.0,254.26,254.23,12.04152658]
[1732392208925,10.0,254.26,254.25,12.04152658]
[1732392210854,10.0,254.29,254.25,12.04152658]
[1732392211036,10.0,254.29,254.28,12.04152658]
[1732392211233,10.0,254.28,254.27,12.04152658]
[1732392211441,10.0,254.18,254.14,20.0]
[1732392211745,10.0,254.18,254.17,32.04152658]
[1732392212162,10.0,254.18,254.17,12.04152658]
[1732392213560,10.0,254.18,254.17,32.04152658]
[1732392215242,10.0,254.28,254.18,20.0]
[1732392215455,10.0,254.28,254.27,12.04152658]
[1732392215656,16.0724,254.3,254.27,12.04152658]
[1732392215657,10.0,254.3,254.27,12.04152658]
[1732392215843,10.0,254.32,254.29,12.04152658]
[1732392216050,10.0,254.34,254.31,12.04152658]
[1732392216258,10.0,254.34,254.33,12.04152658]
[1732392216565,16.0932,254.37,254.33,12.04152658]
[1732392216566,10.0,254.35,254.33,12.04152658]
[1732392216767,10.0,254.35,254.34,12.04152658]
[1732392217743,16.0932,254.43,254.32,32.04152658]
[1732392217744,10.0,254.33,254.32,32.04152658]
[1732392217965,16.0932,254.43,254.19,25.0968]
[1732392217966,10.0,254.31,254.3,12.04152658]
[1732392218471,10.0,254.29,254.2,20.0]
[1732392218643,10.0,254.29,254.28,19.2663819]
[1732392219071,10.0,254.41,254.2,20.0]
[1732392219072,10.0,254.27,254.26,39.2663819]
[1732392219949,10.0,254.27,254.26,19.2663819]
[1732392220157,10.0,254.27,254.24,19.2663819]
[1732392220348,10.0,254.25,254.24,19.2663819]
[1732392221255,41.8568819,254.31,254.22,19.2663819]
[1732392221256,10.0,254.23,254.22,19.2663819]
[1732392221474,10.0,254.23,254.21,19.2663819]
[1732392221675,10.0,254.23,254.22,19.2663819]
[1732392221965,10.0,254.23,254.14,20.0]
[1732392222162,10.0,254.23,254.22,19.2663819]
[1732392225043,10.0,254.23,254.15,19.2663819]
[1732392225044,10.0,254.22,254.2,19.2663819]
[1732392226370,10.0,254.2,254.18,19.2663819]
[1732392229477,10.0,254.2,254.19,19.2663819]
[1732392233156,10.0,254.18,254.17,19.2663819]
[1732392238762,10.0,254.18,254.17,12.04991457]
[1732392241076,10.0,254.22,254.17,12.04991457]
[1732392241278,10.0,254.24,254.21,12.04991457]
[1732392241577,10.0,254.26,254.23,12.04991457]
[1732392241778,10.0,254.26,254.15,12.04991457]
[1732392241779,10.0,254.26,254.25,12.04991457]
[1732392244657,10.0,254.26,254.24,12.04991457]
[1732392245174,10.0,254.26,254.22,12.04991457]
[1732392245485,10.0,254.26,254.25,12.04991457]
[1732392245665,10.0,254.28,254.25,12.04991457]
[1732392245977,10.0,254.28,254.16,20.0]
[1732392245978,10.0,254.29,254.27,12.04991457]
[1732392246194,10.0,254.29,254.28,12.04991457]
[1732392247079,10.0,254.29,254.27,12.04991457]
[1732392247259,10.0,254.27,254.26,12.04991457]
[1732392247661,10.0,254.25,254.23,12.04991457]
[1732392247863,10.0,254.25,254.22,12.04991457]
[1732392248077,10.0,254.25,254.15,12.04991457]
[1732392248078,10.0,254.23,254.21,12.04991457]
[1732392248277,10.0,254.21,254.15,12.04991457]
[1732392248971,10.0,254.19,254.15,12.04991457]
[1732392249174,10.0,254.16,253.99,26.5878]
[1732392249379,10.0,254.16,254.15,12.04991457]
[1732392252061,10.0,254.16,254.14,12.04991457]
[1732392252359,10.0,254.16,254.15,12.04991457]
[1732392255470,10.0,254.18,254.15,12.04991457]
[1732392255668,10.0,254.18,254.17,12.04991457]
[1732392256992,10.0,254.18,254.16,12.04991457]
[1732392257774,10.0,254.18,254.17,12.04991457]
[1732392260497,10.0,254.18,254.06,8.00216966]
[1732392260681,10.0,254.18,254.17,12.04991457]
[1732392261477,9.8303,254.32,254.17,12.04991457]
[1732392261478,10.0,254.22,254.17,12.04991457]
[1732392261785,10.0,254.22,254.21,12.04991457]
[1732392265076,10.0,254.24,254.21,12.04991457]
[1732392265284,15.2362,254.29,254.23,12.04991457]
[1732392265285,10.0,254.26,254.23,12.04991457]
[1732392265578,10.0,254.26,254.25,12.04991457]
[1732392267701,12.04991457,254.34,254.25,12.04991457]
[1732392267702,10.0,254.28,254.25,12.04991457]
[1732392267904,10.0,254.3,254.27,12.04991457]
[1732392268138,10.0,254.3,254.29,12.04991457]
[1732392268602,10.0,254.35,254.3,20.0]
[1732392268810,10.0,254.35,254.34,12.04991457]
[1732392269174,10.0,254.35,254.33,12.04991457]
[1732392269802,10.0,254.35,254.32,12.04991457]
[1732392270103,10.0,254.33,254.32,20.0]
[1732392270606,10.0,254.33,254.29,20.0]
[1732392270999,10.0,254.3,254.29,20.0]
[1732392271810,10.0,254.3,254.28,12.04991457]
[1732392272311,10.0,254.3,254.29,32.04991457]
[1732392272483,10.0,254.35,254.29,32.04991457]
[1732392272692,27.28611457,254.4,254.3,20.0]
[1732392272693,10.0,254.31,254.3,20.0]
[1732392273115,10.0,254.31,254.22,20.0]
[1732392273302,10.0,254.29,254.22,20.0]
[1732392273508,10.0,254.33,254.31,20.0]
[1732392273687,10.0,254.33,254.32,12.04991457]
[1732392274199,10.0,254.33,254.31,12.04991457]
[1732392274400,10.0,254.33,254.32,12.04991457]
[1732392275187,10.0,254.35,254.32,12.04991457]
[1732392275385,12.04991457,254.39,254.32,12.04991457]
[1732392275386,10.0,254.33,254.32,12.04991457]
[1732392276099,10.0,254.33,254.31,12.04991457]
[1732392276887,10.0,254.33,254.32,12.04991457]
[1732392277303,10.0,254.35,254.32,12.04991457]
[1732392277488,10.0,254.37,254.34,12.04991457]
[1732392277821,10.0,254.41,254.37,20.0]
[1732392278114,10.0,254.41,254.4,12.04991457]
[1732392278612,10.0,254.41,254.39,12.04991457]
[1732392278913,10.0,254.41,254.38,12.04991457]
[1732392279102,10.0,254.39,254.38,20.0]
[1732392279801,10.0,254.35,254.34,12.04991457]
[1732392279982,10.0,254.33,254.32,32.04991457]
[1732392280183,10.0,254.35,254.32,12.04991457]
[1732392280402,10.0,254.35,254.33,12.04991457]
[1732392281112,10.0,254.35,254.34,12.04991457]
[1732392281707,10.0,254.37,254.34,12.04991457]
[1732392281888,10.0,254.37,254.36,12.04991457]
[1732392282403,10.0,254.39,254.36,12.04991457]
[1732392282712,10.0,254.39,254.28,12.04991457]
[1732392282713,10.0,254.39,254.38,12.04991457]
[1732392282888,10.0,254.42,254.38,12.04991457]
[1732392283289,10.0,254.42,254.41,12.04991457]
[1732392284220,10.0,254.42,254.39,12.04991457]
[1732392284584,10.0,254.4,254.39,12.04991457]
[1732392285217,33.776884,254.4,254.39,12.04991457]
[1732392286218,10.0,254.44,254.4,20.0]
[1732392286424,10.0,254.44,254.43,12.04991457]
[1732392286710,10.0,254.47,254.43,12.04991457]
[1732392286922,10.0,254.45,254.44,20.0]
[1732392287222,10.0,254.48,254.44,20.0]
[1732392287599,10.0,254.48,254.42,20.0]
[1732392287921,10.0,254.46,254.34,20.0]
[1732392288223,10.0,254.43,254.33,20.0]
[1732392289635,10.0,254.43,254.42,12.04991457]
[1732392289810,33.776884,254.43,254.42,32.04991457]
[1732392290499,23.776884,254.43,254.42,32.04991457]
[1732392291322,10.0,254.47,254.43,20.0]
[1732392291625,10.0,254.42,254.32,8.03670978]
[1732392291802,10.0,254.44,254.41,12.04991457]
[1732392292003,33.776884,254.44,254.43,12.04991457]
[1732392292216,10.0,254.44,254.42,12.04991457]
[1732392293521,10.0,254.41,254.4,20.0]
[1732392293829,33.776884,254.41,254.4,20.0]
[1732392294408,33.776884,254.41,254.4,12.04991457]
[1732392294617,33.776884,254.41,254.4,32.04991457]
[1732392294814,10.0,254.43,254.4,32.04991457]
[1732392295004,10.0,254.43,254.42,12.04991457]
[1732392295630,10.0,254.46,254.42,12.04991457]
[1732392295934,10.0,254.46,254.45,12.04991457]
[1732392296410,10.0,254.46,254.44,12.04991457]
[1732392296931,16.334,254.53,254.33,30.0]
[1732392296932,10.0,254.42,254.41,12.04991457]
[1732392297140,10.0,254.42,254.41,32.04991457]
[1732392298538,10.0,254.44,254.42,20.0]
[1732392298719,10.0,254.44,254.42,32.04991457]
[1732392299410,10.0,254.42,254.41,32.04991457]
[1732392299610,10.0,254.42,254.41,20.0]
[1732392299824,10.0,254.42,254.41,32.04991457]
[1732392301238,10.0,254.4,254.38,12.04991457]
[1732392301808,10.0,254.4,254.31,16.1348]
[1732392302021,10.0,254.4,254.38,12.04991457]
[1732392302229,10.0,254.34,254.25,16.1348]
[1732392302409,10.0,254.34,254.33,12.04991457]
[1732392302606,10.0,254.36,254.33,12.04991457]
[1732392302809,10.0,254.36,254.35,12.04991457]
[1732392303616,10.0,254.36,254.35,32.04991457]
[1732392305032,9.9255263,254.36,254.35,32.04991457]
[1732392305429,7.9255263,254.36,254.35,32.04991457]
[1732392305656,7.9255263,254.36,254.29,20.0]
[1732392305934,7.9255263,254.36,254.35,12.04991457]
[1732392306540,7.9255263,254.34,254.31,12.04991457]
[1732392306833,7.9255263,254.32,254.29,12.04991457]
[1732392307035,7.9255263,254.3,254.29,12.04991457]
[1732392307617,31.7024103,254.3,254.29,12.04991457]
[1732392307840,31.7024103,254.3,254.19,16.1348]
[1732392307841,31.7024103,254.28,254.27,12.04991457]
[1732392308018,23.776884,254.27,254.25,12.04991457]
[1732392308212,7.9255263,254.26,254.25,12.04991457]
[1732392308439,31.7024103,254.26,254.25,12.04991457]
[1732392308941,7.9255263,254.26,254.25,12.04991457]
[1732392310022,31.7024103,254.26,254.25,12.04991457]
[1732392311727,31.7024103,254.24,254.23,12.04991457]
[1732392312151,23.776884,254.23,254.12,16.1348]
[1732392312325,23.776884,254.23,254.21,12.04991457]
[1732392312725,31.7024103,254.22,254.21,12.04991457]
[1732392312923,7.9255263,254.22,254.21,12.04991457]
[1732392314221,12.04991457,254.39,254.28,129.8744737]
[1732392314437,25.1416,254.4,254.31,12.04991457]
[1732392314656,37.19151457,254.4,254.31,12.04991457]
[1732392314955,47.19151457,254.4,254.31,12.04991457]
[1732392315242,37.19151457,254.4,254.31,12.04991457]
[1732392315452,33.26061457,254.4,254.33,12.04991457]
[1732392315826,12.04991457,254.38,254.31,12.04991457]
[1732392316135,37.19151457,254.4,254.31,12.04991457]
[1732392316337,21.2107,254.4,254.33,12.04991457]
[1732392316522,21.2107,254.4,254.35,12.04991457]
[1732392316721,21.2107,254.4,254.37,12.04991457]
[1732392317122,21.2107,254.4,254.36,12.04991457]
[1732392317428,21.2107,254.4,254.34,12.04991457]
[1732392317842,21.2107,254.4,254.31,12.04991457]
[1732392317843,12.04991457,254.39,254.31,12.04991457]
[1732392318047,23.776884,254.36,254.32,20.0]
[1732392318529,23.776884,254.36,254.29,12.04991457]
[1732392322226,23.776884,254.33,254.27,20.0]
[1732392323333,23.776884,254.33,254.28,20.0]
[1732392323548,23.776884,254.34,254.29,12.04991457]
[1732392324246,23.776884,254.34,254.28,12.04991457]
[1732392325037,23.776884,254.34,254.18,20.0]
[1732392325038,39.75859857,254.34,254.26,12.04991457]
[1732392327223,39.75859857,254.34,254.16,7.83916097]
[1732392327224,23.776884,254.34,254.28,12.04991457]
[1732392327424,12.04991457,254.37,254.3,12.04991457]
[1732392327630,33.26061457,254.4,254.32,12.04991457]
[1732392327939,12.04991457,254.39,254.31,12.04991457]
[1732392328538,15.98091457,254.39,254.31,12.04991457]
[1732392329145,23.776884,254.38,254.31,12.04991457]
[1732392329849,33.26061457,254.4,254.33,12.04991457]
[1732392330061,21.2107,254.4,254.35,12.04991457]
[1732392331330,23.776884,254.39,254.35,12.04991457]
[1732392332152,15.0923,254.4,254.35,12.04991457]
[1732392332356,15.0923,254.4,254.36,12.04991457]
[1732392333551,15.0923,254.4,254.35,12.04991457]
[1732392334452,15.0923,254.4,254.34,12.04991457]
[1732392335362,23.776884,254.39,254.34,12.04991457]
[1732392337859,23.776884,254.39,254.32,12.04991457]
[1732392338172,23.776884,254.39,254.2,15.7072]
[1732392338173,12.04991457,254.37,254.33,20.0]
[1732392338539,23.776884,254.36,254.31,32.04991457]
[1732392338865,12.04991457,254.38,254.32,20.0]
[1732392338866,7.70500301,254.38,254.32,20.0]
[1732392339155,23.776884,254.38,254.32,27.70500301]
[1732392339548,31.48188701,254.38,254.32,20.0]
[1732392339941,7.70500301,254.37,254.3,7.70500301]
[1732392340136,7.70500301,254.36,254.2,15.7072]
[1732392340361,7.70500301,254.36,254.29,7.70500301]
[1732392341861,7.70500301,254.36,254.3,20.0]
[1732392343190,7.70500301,254.37,254.3,7.70500301]
[1732392343356,31.48188701,254.38,254.31,7.70500301]
[1732392343666,22.79730301,254.4,254.33,7.70500301]
[1732392343857,15.0923,254.4,254.35,7.70500301]
[1732392344750,7.70500301,254.45,254.38,7.70500301]
[1732392345065,7.70500301,254.44,254.37,7.70500301]
[1732392346249,7.70500301,254.42,254.35,7.70500301]
[1732392346461,7.70500301,254.39,254.29,20.0]
[1732392346658,7.70500301,254.39,254.32,27.70500301]
[1732392347340,23.776884,254.39,254.34,20.0]
[1732392348268,7.70500301,254.41,254.34,7.70500301]
[1732392348466,23.776884,254.44,254.36,7.70500301]
[1732392348672,23.776884,254.42,254.35,32.03458245]
[1732392349364,23.776884,254.43,254.37,12.03458245]
[1732392349562,12.03458245,254.44,254.37,12.03458245]
[1732392349865,21.7458,254.46,254.39,12.03458245]
[1732392350165,12.03458245,254.48,254.4,12.03458245]
[1732392350849,12.03458245,254.48,254.41,12.03458245]
[1732392351047,16.23356516,254.51,254.41,12.03458245]
[1732392351371,16.258,254.52,254.45,12.03458245]
[1732392351568,12.03458245,254.54,254.47,12.03458245]
[1732392351743,26.24883568,254.58,254.47,12.03458245]
[1732392351948,12.03458245,254.54,254.47,12.03458245]
[1732392352567,12.03458245,254.52,254.45,12.03458245]
[1732392353161,12.03458245,254.49,254.41,12.03458245]
[1732392353351,12.03458245,254.47,254.39,20.0]
[1732392353551,12.03458245,254.46,254.39,32.03458245]
[1732392353759,12.03458245,254.47,254.4,12.03458245]
[1732392354171,12.03458245,254.47,254.41,20.0]
[1732392354380,12.03458245,254.46,254.41,20.0]
[1732392354678,12.03458245,254.47,254.4,12.03458245]
[1732392354971,12.03458245,254.47,254.41,20.0]
[1732392358546,12.03458245,254.47,254.4,20.0]
[1732392360345,23.776884,254.5,254.43,12.03458245]
[1732392360548,23.776884,254.5,254.32,20.0]
[1732392360549,23.776884,254.5,254.45,12.03458245]
[1732392360972,35.81146645,254.51,254.44,12.03458245]
[1732392361253,12.03458245,254.48,254.41,20.0]
[1732392362179,12.03458245,254.43,254.35,12.03458245]
[1732392362358,12.03458245,254.41,254.34,12.03458245]
[1732392363655,12.03458245,254.41,254.35,20.0]
[1732392364856,12.03458245,254.41,254.34,20.0]
[1732392365055,35.81146645,254.4,254.34,20.0]
[1732392365449,35.81146645,254.4,254.33,20.0]
[1732392365848,16.0981,254.47,254.35,12.03458245]
[1732392365849,12.03458245,254.43,254.35,12.03458245]
[1732392366080,23.776884,254.42,254.35,12.03458245]
[1732392367066,35.81146645,254.42,254.34,12.03458245]
[1732392368270,12.03458245,254.37,254.32,20.0]
[1732392368468,12.03458245,254.36,254.32,20.0]
[1732392368876,12.03458245,254.36,254.3,20.0]
[1732392369082,12.03458245,254.36,254.26,20.0]
[1732392369374,12.03458245,254.36,254.29,20.0]
[1732392369579,23.776884,254.35,254.29,32.03458245]
[1732392369963,23.776884,254.35,254.26,20.0]
[1732392370166,23.776884,254.35,254.29,20.0]
[1732392370764,23.776884,254.37,254.32,12.03458245]
[1732392370966,23.776884,254.38,254.31,12.03458245]
[1732392372986,12.03458245,254.43,254.36,12.03458245]
[1732392373170,12.03458245,254.42,254.34,12.03458245]
[1732392375471,23.776884,254.44,254.34,12.03458245]
[1732392375792,23.776884,254.42,254.37,12.03458245]
[1732392375990,12.03458245,254.45,254.37,12.03458245]
[1732392376292,12.03458245,254.45,254.29,20.0]
[1732392376293,12.03458245,254.46,254.39,12.03458245]
[1732392376470,28.13268245,254.47,254.39,12.03458245]
[1732392377292,35.81146645,254.45,254.38,12.03458245]
[1732392377867,35.81146645,254.45,254.3,6.0846]
[1732392377868,12.03458245,254.44,254.37,12.03458245]
[1732392378066,35.81146645,254.42,254.3,6.0846]
[1732392378291,12.03458245,254.41,254.35,20.0]
[1732392378680,35.81146645,254.4,254.33,12.03458245]
[1732392378883,12.03458245,254.4,254.34,20.0]
[1732392379074,12.03458245,254.41,254.34,32.03458245]
[1732392379277,12.03458245,254.43,254.36,12.03458245]
[1732392379591,23.776884,254.42,254.36,12.03458245]
[1732392381073,35.81146645,254.42,254.34,12.03458245]
[1732392381775,12.03458245,254.4,254.33,12.03458245]
[1732392382983,12.03458245,254.38,254.33,20.0]
[1732392383598,12.03458245,254.38,254.31,20.0]
[1732392384394,12.03458245,254.39,254.31,12.03458245]
[1732392384594,12.03458245,254.39,254.32,20.0]
[1732392385494,12.03458245,254.37,254.3,20.0]
[1732392385878,12.03458245,254.38,254.3,32.03458245]
[1732392386481,12.03458245,254.36,254.29,20.0]
[1732392386871,12.03458245,254.33,254.25,12.03458245]
[1732392387079,12.03458245,254.31,254.23,12.03458245]
[1732392387884,15.1972,254.37,254.19,16.5924]
[1732392387885,12.03458245,254.32,254.24,12.03458245]
[1732392391319,12.03458245,254.3,254.23,12.03458245]
[1732392391491,12.03458245,254.3,254.15,12.03458245]
[1732392391492,12.03458245,254.3,254.21,12.03458245]
[1732392392501,12.03458245,254.3,254.23,12.03458245]
[1732392392710,7.70975625,254.3,254.23,7.70975625]
[1732392394090,7.70975625,254.3,254.15,30.839025]
[1732392394091,23.776884,254.27,254.14,20.0]
[1732392394400,3.9324,254.3,254.21,7.70975625]
[1732392394597,3.9324,254.3,254.15,30.839025]
[1732392394598,23.776884,254.21,254.01,15.4689]
[1732392394807,23.776884,254.21,254.09,7.70975625]
[1732392394984,31.48664025,254.21,254.11,7.70975625]
[1732392395191,31.48664025,254.21,254.13,7.70975625]
[1732392395597,7.70975625,254.21,254.13,7.70975625]
[1732392396701,12.05666158,254.2,254.12,12.05666158]
[1732392397101,12.05666158,254.18,254.1,12.05666158]
[1732392397282,12.05666158,254.16,254.08,12.05666158]
[1732392398697,16.2854,254.18,254.08,12.05666158]
[1732392398698,28.34206158,254.18,254.09,20.0]
[1732392398901,12.05666158,254.16,254.08,12.05666158]
[1732392399316,16.2854,254.18,254.06,12.05666158]
[1732392399317,12.05666158,254.14,254.06,12.05666158]
[1732392400808,12.05666158,254.16,254.08,12.05666158]
[1732392401109,23.776884,254.15,254.08,12.05666158]
[1732392402822,10.4569,254.17,254.1,12.05666158]
[1732392402823,6.5226,254.17,254.1,12.05666158]
[1732392403021,6.5226,254.17,254.12,12.05666158]
[1732392403521,6.5226,254.17,254.11,12.05666158]
[1732392404019,16.2854,254.18,254.02,12.05666158]
[1732392404020,16.2854,254.18,254.14,12.05666158]
[1732392404223,16.2854,254.18,254.13,12.05666158]
[1732392405202,16.2854,254.18,254.14,12.05666158]
[1732392407144,16.2854,254.18,254.03,20.0]
[1732392407334,16.2854,254.18,254.13,12.05666158]
[1732392407633,16.2854,254.18,254.1,20.0]
[1732392407634,12.05666158,254.16,254.1,20.0]
[1732392407812,12.05666158,254.16,254.09,12.05666158]
[1732392408123,6.5226,254.23,254.15,12.05666158]
[1732392408328,6.5226,254.23,254.18,12.05666158]
[1732392408925,28.34206158,254.26,254.18,12.05666158]
[1732392410018,23.776884,254.25,254.18,12.05666158]
[1732392410229,12.05666158,254.24,254.18,12.05666158]
[1732392410420,12.05666158,254.23,254.15,12.05666158]
[1732392411039,35.83354558,254.22,254.14,12.05666158]
[1732392411248,12.05666158,254.2,254.14,12.05666158]
[1732392411536,12.05666158,254.21,254.13,12.05666158]
[1732392412039,12.05666158,254.23,254.15,12.05666158]
[1732392413137,23.776884,254.2,254.13,12.05666158]
[1732392413318,12.05666158,254.19,254.11,12.05666158]
[1732392413518,12.05666158,254.19,254.12,20.0]
[1732392413829,12.05666158,254.17,254.1,12.05666158]
[1732392414929,12.05666158,254.17,254.08,12.05666158]
[1732392415141,12.05666158,254.15,254.08,12.05666158]
[1732392416827,12.05666158,254.15,254.01,20.0]
[1732392417036,12.05666158,254.15,254.08,20.0]
[1732392417242,39.494784,254.16,254.09,12.05666158]
[1732392419641,23.776884,254.13,254.06,12.05666158]
[1732392420343,23.776884,254.15,254.08,12.05666158]
[1732392420855,23.776884,254.15,254.08,7.71844768]
[1732392421143,23.776884,254.13,253.95,16.39186174]
[1732392421331,23.776884,254.13,254.06,7.71844768]
[1732392424127,23.776884,254.13,253.95,16.39186174]
[1732392424327,23.776884,254.13,254.07,7.71844768]
[1732392424523,23.776884,254.13,254.05,7.71844768]
[1732392424922,23.776884,254.13,254.07,7.71844768]
[1732392425142,23.776884,254.13,253.95,16.39186174]
[1732392425332,23.776884,254.13,253.96,20.0]
[1732392425535,23.776884,254.13,254.06,7.71844768]
[1732392425735,3.9347,254.15,254.08,7.71844768]
[1732392425736,23.776884,254.15,254.08,7.71844768]
[1732392426132,31.49533168,254.15,254.03,20.0]
[1732392426445,23.776884,254.12,254.03,20.0]
[1732392426650,23.776884,254.12,254.04,7.71844768]
[1732392427027,23.776884,254.12,254.06,7.71844768]
[1732392428360,15.7179,254.16,254.08,7.71844768]
[1732392428522,23.43634768,254.16,254.08,7.71844768]
[1732392428726,23.43634768,254.16,254.02,30.87379072]
[1732392428952,15.7179,254.16,254.12,7.71844768]
[1732392429162,15.7179,254.16,254.13,7.71844768]
[1732392429365,15.7179,254.16,254.11,7.71844768]
[1732392430958,15.7179,254.16,254.08,7.71844768]
[1732392431943,15.7179,254.16,254.03,20.0]
[1732392432139,23.776884,254.15,254.08,7.71844768]
[1732392432650,23.776884,254.15,253.97,20.0]
[1732392432956,23.776884,254.15,254.08,7.71844768]
[1732392433453,23.776884,254.15,253.97,20.0]
[1732392433655,23.776884,254.15,254.08,7.71844768]
[1732392433958,15.7179,254.16,254.08,7.71844768]
[1732392434826,15.7179,254.16,254.03,20.0]
[1732392435053,7.71844768,254.15,254.06,7.71844768]
[1732392435254,7.71844768,254.1,253.96,24.22821997]
[1732392435436,7.71844768,254.08,254.0,7.71844768]
[1732392436143,7.71844768,254.06,253.85,16.738852]
[1732392436450,7.71844768,254.04,253.97,7.71844768]
[1732392436960,23.776884,254.04,253.97,7.71844768]
[1732392437126,23.776884,254.04,253.85,1.005]
[1732392437329,23.776884,254.04,253.89,30.87379072]
[1732392437637,23.776884,254.02,253.95,7.71844768]
[1732392437842,23.776884,254.02,253.96,7.71844768]
[1732392438045,23.776884,254.03,253.96,7.71844768]
[1732392438340,23.776884,254.04,253.97,7.71844768]
[1732392438848,21.8948,254.07,253.99,7.71844768]
[1732392439030,29.61324768,254.07,254.0,7.71844768]
[1732392440231,29.61324768,254.07,253.89,30.87379072]
[1732392440232,21.8948,254.07,254.03,7.71844768]
[1732392440441,15.7884,254.07,254.03,7.71844768]
[1732392441132,15.7884,254.07,254.02,7.71844768]
[1732392441453,15.7884,254.07,254.01,7.71844768]
[1732392441643,15.7884,254.07,254.02,7.71844768]
[1732392442047,15.7884,254.07,254.01,7.71844768]
[1732392443266,15.7884,254.07,254.0,7.71844768]
[1732392443433,23.50684768,254.07,254.0,20.0]
[1732392443835,15.7884,254.07,254.0,27.71844768]
[1732392444360,23.50684768,254.07,254.0,20.0]
[1732392445370,23.776884,254.04,253.89,30.87379072]
[1732392445665,23.776884,254.04,253.98,7.71844768]
[1732392445867,7.71844768,254.04,253.89,30.87379072]
[1732392446170,23.776884,254.03,253.87,7.88253211]
[1732392446341,23.776884,254.03,253.97,7.71844768]
[1732392446739,31.49533168,254.03,253.96,7.71844768]
[1732392446952,23.776884,254.0,253.85,1.005]
[1732392447145,31.49533168,254.0,253.93,7.71844768]
[1732392447365,23.776884,254.0,253.93,7.71844768]
[1732392447554,23.776884,254.0,253.94,7.71844768]
[1732392447750,3.9367,254.02,253.85,1.005]
[1732392447751,23.776884,254.02,253.96,7.71844768]
[1732392447954,23.776884,254.02,253.97,7.71844768]
[1732392448298,15.7884,254.01,253.85,1.005]
[1732392448566,15.7884,254.01,253.95,7.71844768]
[1732392449071,15.7884,254.01,253.96,7.71844768]
[1732392449771,15.7884,254.01,253.97,7.71844768]
[1732392450566,15.7884,254.01,253.99,7.71844768]
[1732392450743,15.7884,254.01,253.97,7.71844768]
[1732392451345,24.01384768,254.07,253.99,7.71844768]
[1732392452061,23.776884,254.06,253.99,7.71844768]
[1732392452471,31.49533168,254.06,253.9,20.0]
[1732392452769,31.49533168,254.06,253.98,7.71844768]
[1732392453772,7.71844768,254.0,253.86,20.0]
[1732392453975,7.71844768,254.0,253.92,7.71844768]
[1732392454175,7.71844768,254.02,253.94,7.71844768]
[1732392456971,3.9364,254.04,253.96,7.71844768]
[1732392456972,11.65484768,254.04,253.96,7.71844768]
[1732392457660,23.776884,254.06,253.96,7.71844768]
[1732392457862,31.49533168,254.06,253.98,7.71844768]
[1732392458062,31.49533168,254.06,253.89,30.87379072]
[1732392458063,7.71844768,254.04,253.95,7.71844768]
[1732392459659,7.71844768,254.04,253.97,7.71844768]
[1732392460062,7.71844768,254.04,253.95,7.71844768]
[1732392461181,7.71844768,254.04,253.89,30.87379072]
[1732392461182,16.2954,254.07,253.97,7.71844768]
[1732392461369,7.71844768,254.06,253.99,7.71844768]
[1732392461555,7.71844768,254.06,253.98,7.71844768]
[1732392461751,7.71844768,254.06,253.99,7.71844768]
[1732392463082,16.2954,254.07,253.99,7.71844768]
[1732392463268,7.71844768,254.06,253.99,7.71844768]
[1732392463675,16.2954,254.07,253.99,7.71844768]
[1732392463987,15.5371,254.13,254.03,7.71844768]
[1732392464565,7.71844768,254.1,254.03,7.71844768]
[1732392464763,7.71844768,254.09,254.02,7.71844768]
[1732392464965,7.71844768,254.09,254.03,20.0]
[1732392465169,7.71844768,254.07,254.03,20.0]
[1732392465484,7.71844768,254.08,254.01,20.0]